fUST/lending_fUST_20250127
["ID","MTS","AMOUNT","RATE_DAILY","PERIOD"]
[350524556,1737943840339,-500.0,0.00017534,2]
[350524557,1737943840350,-3105.89,0.00017534,2]
[350524558,1737943840360,-583.73,0.00017534,2]
[350524559,1737943840369,-500.0,0.00017534,2]
[350524560,1737943840379,-500.0,0.00017671,2]
[350524561,1737943840389,-500.0,0.00017671,2]
[350524562,1737943840399,-500.0,0.00017671,2]
[350524563,1737943840409,-500.0,0.00017671,2]
[350524564,1737943840419,-500.0,0.00017671,2]
[350524565,1737943840428,-3105.89,0.00017671,2]
[350524566,1737943840438,-255.98207707,0.00017671,2]
[350524567,1737943840453,-327.74792293,0.00017671,2]
[350524568,1737943840463,-500.0,0.00017671,2]
[350524569,1737943840473,-500.0,0.00017808,2]
[350524570,1737943840483,-500.0,0.00017808,2]
[350524571,1737943840493,-500.0,0.00017808,2]
[350524572,1737943840503,-500.0,0.00017808,2]
[350524574,1737943840516,-500.0,0.00017808,2]
[350524576,1737943840525,-3105.89,0.00017808,2]
[350524578,1737943840535,-583.73,0.00017808,2]
[350524580,1737943840544,-500.0,0.00017808,2]
[350524582,1737943840554,-205.48825167,0.000179,2]
[350524584,1737943840564,-300.0,0.000179,7]
[350524586,1737943840573,-500.0,0.00017945,2]
[350524588,1737943840582,-500.0,0.00017945,2]
[350524589,1737943840591,-500.0,0.00017945,2]
[350524592,1737943840602,-500.0,0.00017945,2]
[350524594,1737943840612,-620.89201757,0.00017945,2]
[350524595,1737943840621,-3105.89,0.00017945,2]
[350524597,1737943840631,-583.73,0.00017945,2]
[350524599,1737943840640,-500.0,0.00017945,2]
[350524601,1737943840649,-420.0,0.00017963,2]
[350524603,1737943840659,-500.0,0.00018082,2]
[350524605,1737943840668,-500.0,0.00018082,2]
[350524607,1737943840679,-500.0,0.00018082,2]
[350524609,1737943840688,-500.0,0.00018082,2]
[350524611,1737943840698,-3105.89,0.00018082,2]
[350524613,1737943840707,-583.73,0.00018082,2]
[350524615,1737943840717,-500.0,0.00018082,2]
[350524617,1737943840726,-603.96,0.00018219,2]
[350524619,1737943840736,-500.0,0.00018219,2]
[350524621,1737943840746,-500.0,0.00018219,2]
[350524623,1737943840756,-500.0,0.00018219,2]
[350524625,1737943840766,-3105.89,0.00018219,2]
[350524627,1737943840776,-583.73,0.00018219,2]
[350524629,1737943840786,-500.0,0.00018219,2]
[350524631,1737943840796,-500.0,0.00018356,2]
[350524633,1737943840807,-500.0,0.00018356,2]
[350524635,1737943840817,-500.0,0.00018356,2]
[350524637,1737943840827,-3105.89,0.00018356,2]
[350524639,1737943840837,-583.73,0.00018356,2]
[350524641,1737943840847,-500.0,0.00018356,2]
[350524643,1737943840857,-176.13661708,0.00018363,2]
[350524645,1737943840867,-205.48825167,0.00018456,2]
[350524647,1737943840877,-206.108,0.00018466,2]
[350524649,1737943840886,-500.0,0.00018493,2]
[350524651,1737943840897,-500.0,0.00018493,2]
[350524653,1737943840906,-623.30637608,0.00018493,2]
[350524655,1737943840917,-3105.89,0.00018493,2]
[350524657,1737943840927,-583.73,0.00018493,2]
[350524659,1737943840939,-500.0,0.00018493,2]
[350524661,1737943840951,-1708.53,0.000185,2]
[350524663,1737943840962,-150.68,0.000186,2]
[350524665,1737943840972,-150.68,0.000186,2]
[350524667,1737943840982,-500.0,0.0001863,2]
[350524669,1737943840992,-500.0,0.0001863,2]
[350524670,1737943841001,-3105.89,0.0001863,2]
[350524672,1737943841011,-583.73,0.0001863,2]
[350524674,1737943841021,-500.0,0.0001863,2]
[350524676,1737943841031,-395.0,0.00018706,2]
[350524678,1737943841041,-500.0,0.00018767,2]
[350524680,1737943841050,-500.0,0.00018767,2]
[350524682,1737943841059,-3105.89,0.00018767,2]
[350524684,1737943841068,-583.73,0.00018767,2]
[350524686,1737943841078,-500.0,0.00018767,2]
[350524688,1737943841087,-4042.39773667,0.000189,2]
[350524690,1737943841097,-500.0,0.00018904,2]
[350524692,1737943841107,-593.54965864,0.00018904,2]
[350524694,1737943841116,-3105.89,0.00018904,2]
[350524696,1737943841126,-583.73,0.00018904,2]
[350524698,1737943841136,-20000.20419951,0.00019,3]
[350524699,1737943841146,-7458.15634357,0.00019,3]
[350524701,1737943841155,-205.48825167,0.00019011,2]
[350524703,1737943841165,-500.0,0.00019041,2]
[350524705,1737943841174,-3105.89,0.00019041,2]
[350524707,1737943841184,-583.73,0.00019041,2]
[350524709,1737943841194,-500.0,0.00019178,2]
[350524711,1737943841207,-500.0,0.00019178,7]
[350524713,1737943841216,-3105.89,0.00019178,2]
[350524715,1737943841225,-583.73,0.00019178,2]
[350524717,1737943841235,-1507.266,0.00019178,2]
[350524719,1737943841245,-304.55055,0.00019178,2]
[350524720,1737943841255,-223.82601166,0.00019315,2]
[350524722,1737943841264,-3105.89,0.00019315,2]
[350524724,1737943841274,-583.73,0.00019315,2]
[350524725,1737943841285,-300.0,0.000194,8]
[350524727,1737943841294,-3105.89,0.00019452,2]
[350524729,1737943841303,-583.73,0.00019452,2]
[350524731,1737943841313,-205.48825167,0.00019567,2]
[350524733,1737943841322,-3106.02681843,0.00019589,2]
[350524735,1737943841332,-583.8067612,0.00019589,2]
[350524736,1737943841342,-587.0,0.00019631,2]
[350524739,1737943841352,-500.0,0.00019863,9]
[350524741,1737943841362,-89353.42339155,0.0001988,2]
[350524751,1737943841454,-500.0,0.00016575,2]
[350524753,1737943841464,-500.0,0.00016712,2]
[350524754,1737943841475,-500.0,0.00016849,2]
[350524756,1737943841485,-500.0,0.00018904,2]
[350524758,1737943841495,-500.0,0.00019041,2]
[350524760,1737943841504,-170.32717687,0.00019178,2]
[350524762,1737943841514,-3706.43685274,0.0001988,2]
[350524764,1737943841532,-150.82,0.00016986,2]
[350524765,1737943841542,-27842.34626881,0.0001988,2]
[350524766,1737943841555,-6647.36258993,0.0001988,2]
[350524783,1737943841762,-51753.48611954,0.0001988,2]
[350524785,1737943841776,-405.85748006,0.0001988,2]
[350524787,1737943841787,-10427.29474079,0.0001988,2]
[350524789,1737943841799,-102954.58650947,0.0001988,2]
[350524792,1737943841810,-5578.89440641,0.0001988,2]
[350524794,1737943841821,-12092.9083807,0.0001988,2]
[350524796,1737943841831,-160.0,0.0002,2]
[350524798,1737943841840,-6723.48927491,0.0002,2]
[350524801,1737943841859,-196.0798321,0.00016338,2]
[350524803,1737943841868,-134.0741679,0.0002,2]
[350524805,1737943841879,-714.78080813,0.0002,2]
[350524855,1737943843702,-5000.0,0.00016175,13]
[350524856,1737943843711,-13519.65574906,0.0002,2]
[350524857,1737943843720,-150.0,0.0002,5]
[350524858,1737943843729,-167.092,0.0002,2]
[350524859,1737943843739,-500.0,0.0002,2]
[350524860,1737943843748,-185.45626962,0.0002,2]
[350524861,1737943843757,-160.0,0.0002,3]
[350524862,1737943843766,-205.48825167,0.00020122,2]
[350524863,1737943843776,-176.13661708,0.00020389,2]
[350524864,1737943843786,-500.0,0.00020547,11]
[350524865,1737943843795,-205.48825167,0.00020678,2]
[350524866,1737943843804,-6441.61,0.000207,2]
[350524867,1737943843813,-156.839,0.0002084,2]
[350524868,1737943843822,-300.0,0.000209,9]
[350524869,1737943843832,-150.0,0.00021,2]
[350524870,1737943843841,-500.0,0.00021232,13]
[350524871,1737943843850,-205.48825167,0.00021233,2]
[350524873,1737943843859,-823.0,0.00021454,2]
[350524874,1737943843868,-153.0,0.00021495,2]
[350524875,1737943843877,-153.0,0.00021495,2]
[350524876,1737943843886,-153.0,0.00021495,2]
[350524877,1737943843895,-153.0,0.00021495,2]
[350524878,1737943843904,-153.0,0.00021495,2]
[350524879,1737943843913,-153.0,0.00021495,2]
[350524880,1737943843923,-153.0,0.00021495,2]
[350524881,1737943843935,-153.0,0.00021495,2]
[350524882,1737943843944,-153.0,0.00021495,2]
[350524883,1737943843954,-153.0,0.00021495,2]
[350524884,1737943843964,-153.0,0.00021495,2]
[350524885,1737943843975,-153.0,0.00021495,2]
[350524886,1737943843988,-153.0,0.00021495,2]
[350524887,1737943843998,-153.0,0.00021495,2]
[350524888,1737943844007,-237.88,0.00021495,2]
[350524889,1737943844019,-15315.68796824,0.000216,5]
[350524890,1737943844028,-3028.30982298,0.000216,5]
[350524891,1737943844037,-19841.49235873,0.000216,4]
[350524892,1737943844049,-1250.50764127,0.000216,4]
[350524893,1737943844058,-395.0,0.00021706,2]
[350524895,1737943844170,-205.48825167,0.00021789,3]
[350524896,1737943844179,-151.0,0.000218,3]
[350524897,1737943844189,-160.79376164,0.00021871,5]
[350524898,1737943844197,-5487.36375662,0.000219,2]
[350524899,1737943844210,-954.24624338,0.000219,2]
[350524900,1737943844219,-151.0,0.000219,3]
[350524901,1737943844227,-181.3,0.000219,31]
[350524902,1737943844236,-181.3,0.000219,31]
[350524903,1737943844245,-181.3,0.000219,31]
[350524904,1737943844254,-181.3,0.000219,31]
[350524905,1737943844263,-181.3,0.000219,31]
[350524906,1737943844272,-8.25375662,0.000219,31]
[350524907,1737943844283,-173.04624338,0.000219,31]
[350524908,1737943844292,-181.3,0.000219,31]
[350524909,1737943844301,-181.3,0.000219,31]
[350524910,1737943844310,-181.3,0.000219,31]
[350524911,1737943844319,-181.3,0.000219,31]
[350524912,1737943844328,-181.3,0.000219,31]
[350524913,1737943844337,-181.3,0.000219,31]
[350524914,1737943844346,-181.3,0.000219,31]
[350524915,1737943844354,-181.3,0.000219,31]
[350524916,1737943844363,-181.3,0.000219,31]
[350524917,1737943844372,-181.3,0.000219,31]
[350524918,1737943844381,-58.46816229,0.00021917,15]
[350524919,1737943844393,-441.53183771,0.00021917,15]
[350524920,1737943844402,-258.59955707,0.0002194,2]
[350524921,1737943844411,-500.0,0.00021973,2]
[350524922,1737943844420,-500.51962123,0.00021973,2]
[350524923,1737943844429,-500.28276369,0.00021973,2]
[350524924,1737943844438,-500.50474389,0.00021973,2]
[350524925,1737943844447,-500.0,0.00021973,2]
[350524926,1737943844458,-500.0,0.00021973,2]
[350524927,1737943844467,-1612.97372094,0.0002199,7]
[350524928,1737943844479,-375.481998,0.0002199,7]
[350524929,1737943844490,-11174.14787838,0.0002199,7]
[350524980,1737943846039,-664.6591486,0.0002199,7]
[350524981,1737943846052,-15170.0,0.0002199,7]
[350524982,1737943846064,-2060.56438767,0.0002199,7]
[350524983,1737943846252,-101851.31836138,0.0002199,7]
[350524984,1737943846264,-305.5,0.0002199,7]
[350524985,1737943846276,-4099.7103608,0.0002199,7]
[350524986,1737943846287,-12640.32543501,0.0002199,7]
[350524987,1737943846297,-7458.15634357,0.0002199,7]
[350524988,1737943846306,-738.0,0.0002199,3]
[350524990,1737943846315,-160.0,0.0002199,7]
[350524991,1737943846324,-1035.51809642,0.00022,2]
[350524992,1737943846336,-27904.00000665,0.00022,2]
[350524993,1737943904232,-3214.38236115,0.00022,30]
[350524994,1737943904256,-1007.3297481,0.00022,30]
[350524995,1737943904285,-1000.0,0.00022,22]
[350524996,1737943904335,-3838.99063719,0.00022,15]
[350524997,1737943904385,-1000.0,0.00022082,30]
[350524998,1737943904440,-3539.97,0.00022,14]
[350524999,1737943904539,-1000.0,0.0002211,30]
[350525000,1737943904622,-1000.0,0.00022137,30]
[350525001,1737943904687,-399.32725356,0.00022164,30]
[350525005,1737944047104,2917.11324066,0.00016,13]
[350525006,1737944257285,165.48806,0.00013973,2]
[350525007,1737944264050,503.0,0.00015101,2]
[350525018,1737944834137,-300.0,0.0001579,2]
[350525019,1737944834160,-300.0,0.00015949,2]
[350525020,1737944834181,-300.0,0.00016437,2]
[350525021,1737944834203,-518.29649766,0.00016438,2]
[350525022,1737944834224,-506.92400394,0.00016438,2]
[350525023,1737944834252,-500.0,0.00016438,2]
[350525024,1737944834272,-500.70349953,0.00016438,2]
[350525025,1737944834293,-167.62077613,0.00016438,2]
[350525026,1737944834313,-504.55952352,0.00016438,2]
[350525027,1737944834334,-265.37597777,0.00016438,2]
[350525028,1737944834358,-479.35187954,0.00016438,2]
[350525029,1737944834379,-500.0,0.00016438,2]
[350525030,1737944834401,-511.44679974,0.00016438,2]
[350525031,1737944834423,-507.88245288,0.00016438,2]
[350525032,1737944834444,-511.1195879,0.00016438,2]
[350525033,1737944834465,-505.62854842,0.00016438,2]
[350525034,1737944834486,-517.80544721,0.00016438,2]
[350525035,1737944834509,-500.0,0.00016438,2]
[350525036,1737944834531,-506.76294739,0.00016438,2]
[350525037,1737944834554,-504.83694602,0.00016438,2]
[350525038,1737944834575,-503.9413977,0.00016438,2]
[350525039,1737944834596,-586.86555641,0.00016438,2]
[350525040,1737944834618,-505.49543181,0.00016438,2]
[350525041,1737944834638,-589.32889536,0.00016438,2]
[350525042,1737944834659,-507.81659344,0.00016438,2]
[350525043,1737944834681,-510.49021339,0.00016438,2]
[350525044,1737944834704,-517.10988162,0.00016438,2]
[350525045,1737944834726,-507.0409823,0.00016438,2]
[350525046,1737944834748,-505.78449448,0.00016438,2]
[350525047,1737944834770,-513.7615752,0.00016438,2]
[350525048,1737944834793,-500.0,0.00016438,2]
[350525049,1737944834816,-511.93816012,0.00016438,2]
[350525050,1737944834838,-10449.3056043,0.00016546,2]
[350525051,1737944834860,-469.66627402,0.00016575,2]
[350525052,1737944834883,-402.09118021,0.00016575,2]
[350525053,1737944834906,-264.6246695,0.00016596,2]
[350525054,1737944834929,-500.0,0.0001694,2]
[350525055,1737944834951,-500.0,0.0001694,2]
[350525056,1737944834977,-621.42,0.0001694,2]
[350525057,1737944835004,-166.37928433,0.0001694,2]
[350525058,1737944835026,-12746.0902117,0.0001694,2]
[350525059,1737944835048,-332.76,0.00017076,2]
[350525060,1737944835072,-621.42,0.00017076,2]
[350525061,1737944835097,-621.42,0.00017213,2]
[350525062,1737944835121,-621.42,0.0001735,2]
[350525063,1737944835144,-621.42,0.00017487,2]
[350525064,1737944835169,-621.42,0.00017624,2]
[350525065,1737944835194,-621.42,0.00017761,2]
[350525066,1737944835219,-621.42,0.00017898,2]
[350525067,1737944835241,-420.0,0.00017963,2]
[350525068,1737944835367,-621.42,0.00018035,2]
[350525069,1737944835424,-621.42,0.00018172,2]
[350525070,1737944835446,-620.16167714,0.000183,7]
[350525071,1737944835469,-500.0,0.000183,2]
[350525072,1737944835490,-500.0,0.000183,2]
[350525073,1737944835515,-500.0,0.000183,2]
[350525074,1737944835538,-500.0,0.000183,2]
[350525075,1737944835559,-500.0,0.00018301,2]
[350525076,1737944835580,-413.96045863,0.00018301,2]
[350525077,1737944835601,-500.0,0.00018301,2]
[350525078,1737944835622,-527.94988621,0.00018301,2]
[350525079,1737944835644,-506.39530521,0.00018301,2]
[350525080,1737944835665,-504.72911011,0.00018301,2]
[350525081,1737944835687,-282.3833044,0.00018301,2]
[350525082,1737944835709,-517.20299072,0.00018301,2]
[350525083,1737944835731,-500.0,0.00018301,2]
[350525084,1737944835753,-504.11138356,0.00018301,2]
[350525085,1737944835774,-500.0,0.00018301,2]
[350525086,1737944835796,-500.0,0.00018301,2]
[350525087,1737944835817,-500.0,0.00018301,2]
[350525088,1737944835837,-512.70603958,0.00018301,2]
[350525089,1737944835858,-508.69679925,0.00018301,2]
[350525090,1737944835880,-500.0,0.00018301,2]
[350525091,1737944835901,-507.26043965,0.00018301,2]
[350525092,1737944835925,-500.0,0.00018301,2]
[350525093,1737944835948,-432.4157902,0.00018301,2]
[350525094,1737944835971,-500.0,0.00018301,2]
[350525095,1737944835992,-514.66534125,0.00018301,2]
[350525096,1737944836017,-509.5974341,0.00018301,2]
[350525097,1737944836038,-506.46542214,0.00018301,2]
[350525098,1737944836059,-600.87279017,0.00018301,2]
[350525099,1737944836079,-507.68449216,0.00018301,2]
[350525100,1737944836101,-500.0,0.00018301,2]
[350525101,1737944836121,-503.56600726,0.00018301,2]
[350525102,1737944836144,-500.0,0.00018301,2]
[350525103,1737944836164,-515.7137288,0.00018301,2]
[350525104,1737944836188,-500.0,0.00018301,2]
[350525105,1737944836209,-505.34320757,0.00018301,2]
[350525106,1737944836231,-503.84730863,0.00018301,2]
[350525107,1737944836255,-506.15544636,0.00018301,2]
[350525108,1737944836277,-508.9757737,0.00018301,2]
[350525109,1737944836298,-290.42291507,0.00018301,2]
[350525110,1737944836319,-501.81943548,0.00018301,2]
[350525111,1737944836342,-547.20077369,0.00018301,2]
[350525112,1737944836364,-500.0,0.00018301,2]
[350525113,1737944836386,-506.8886096,0.00018301,2]
[350525114,1737944836408,-507.39078344,0.00018301,2]
[350525115,1737944836430,-500.0,0.00018301,2]
[350525116,1737944836451,-509.02866422,0.00018301,2]
[350525117,1737944836472,-504.04473177,0.00018301,2]
[350525118,1737944836493,-504.56176528,0.00018301,2]
[350525119,1737944836518,-504.06391903,0.00018301,2]
[350525120,1737944836539,-503.46484979,0.00018301,2]
[350525121,1737944836560,-484.21608894,0.00018301,2]
[350525122,1737944836583,-500.0,0.00018301,2]
[350525123,1737944836604,-504.56435226,0.00018301,2]
[350525124,1737944836626,-506.87369442,0.00018301,2]
[350525125,1737944836647,-510.22296656,0.00018301,2]
[350525126,1737944836668,-505.37883034,0.00018301,2]
[350525127,1737944836689,-503.56454569,0.00018301,2]
[350525128,1737944836710,-500.0,0.00018301,2]
[350525129,1737944836732,-504.62634662,0.00018301,2]
[350525130,1737944836755,-500.0,0.00018301,2]
[350525131,1737944836783,-504.03436663,0.00018301,2]
[350525132,1737944836807,-476.31980295,0.00018301,2]
[350525133,1737944836828,-505.8003538,0.00018301,2]
[350525134,1737944836851,-511.33635374,0.00018301,2]
[350525135,1737944836875,-512.66205982,0.00018301,2]
[350525136,1737944836898,-504.33467191,0.00018301,2]
[350525137,1737944836922,-508.40257198,0.00018301,2]
[350525138,1737944836946,-222.68813611,0.00018301,2]
[350525139,1737944836970,-437.7670539,0.00018301,2]
[350525140,1737944836992,-500.0,0.00018301,2]
[350525141,1737944837018,-500.0,0.00018301,2]
[350525142,1737944837039,-504.88462325,0.00018301,2]
[350525143,1737944837064,-500.0,0.00018301,2]
[350525144,1737944837089,-621.42,0.00018309,2]
[350525145,1737944837112,-500.0,0.00018437,2]
[350525146,1737944837134,-466.75999999,0.00018437,2]
[350525147,1737944837159,-500.0,0.00018437,2]
[350525148,1737944837184,-500.0,0.00018437,2]
[350525149,1737944837207,-624.04208964,0.00018438,2]
[350525150,1737944837231,-500.0,0.00018438,2]
[350525151,1737944837259,-404.03266255,0.00018438,2]
[350525152,1737944837283,-500.0,0.00018438,2]
[350525153,1737944837305,-442.75227528,0.00018438,2]
[350525154,1737944837328,-410.54,0.00018438,2]
[350525155,1737944837356,-500.0,0.00018438,2]
[350525156,1737944837378,-591.494807,0.00018438,2]
[350525157,1737944837400,-500.0,0.00018438,2]
[350525158,1737944837422,-497.05359855,0.00018438,2]
[350525159,1737944837444,-226.1652587,0.00018438,2]
[350525160,1737944837467,-500.0,0.00018438,2]
[350525161,1737944837488,-500.0,0.00018438,2]
[350525162,1737944837512,-500.0,0.00018438,2]
[350525163,1737944837537,-198.06904159,0.00018438,2]
[350525164,1737944837562,-621.42,0.00018446,2]
[350525165,1737944837584,-164.886,0.00018475,2]
[350525166,1737944837609,-500.0,0.00018574,2]
[350525167,1737944837634,-415.11,0.00018574,2]
[350525168,1737944837658,-500.0,0.00018574,2]
[350525169,1737944837679,-380.12812761,0.00018575,2]
[350525170,1737944837702,-471.12192951,0.00018575,2]
[350525171,1737944837727,-637.56529935,0.00018575,2]
[350525172,1737944837749,-500.0,0.00018575,2]
[350525173,1737944837773,-500.0,0.00018575,2]
[350525174,1737944837795,-313.33586299,0.00018575,2]
[350525175,1737944837817,-500.0,0.00018575,2]
[350525176,1737944837841,-621.42,0.00018583,2]
[350525177,1737944837862,-150.68,0.000186,2]
[350525178,1737944837885,-418.70716497,0.00018711,2]
[350525179,1737944837909,-500.0,0.00018711,2]
[350525180,1737944837931,-500.0,0.00018712,2]
[350525181,1737944837954,-500.0,0.00018712,2]
[350525182,1737944837978,-500.0,0.00018712,2]
[350525183,1737944838002,-621.42,0.0001872,2]
[350525184,1737944838025,-505.3524632,0.00018848,2]
[350525185,1737944838055,-509.25294442,0.00018848,2]
[350525186,1737944838077,-361.35530298,0.00018848,2]
[350525187,1737944838101,-552.86,0.00018848,2]
[350525188,1737944838123,-500.0,0.00018849,2]
[350525189,1737944838148,-500.0,0.00018849,2]
[350525190,1737944838174,-500.0,0.00018849,2]
[350525191,1737944838200,-621.42,0.00018857,2]
[350525192,1737944838225,-224.73219034,0.000189,2]
[350525193,1737944838254,-500.0,0.00018986,2]
[350525194,1737944838279,-500.0,0.00018986,2]
[350525195,1737944838308,-621.42,0.00018994,2]
[350525196,1737944838334,-580.51727353,0.00019123,2]
[350525197,1737944838361,-500.0,0.00019123,2]
[350525198,1737944838390,-621.42,0.00019131,2]
[350525199,1737944838415,-500.0,0.00019178,7]
[350525200,1737944838439,-289.323022,0.00019178,2]
[350525201,1737944838463,-500.0,0.0001926,2]
[350525202,1737944838490,-621.42,0.00019268,2]
[350525203,1737944838516,-395.0,0.00019365,2]
[350525204,1737944838541,-2326.84,0.00019365,2]
[350525205,1737944838566,-500.0,0.00019395,2]
[350525206,1737944838590,-500.0,0.00019395,2]
[350525207,1737944838614,-500.0,0.00019396,2]
[350525208,1737944838637,-1537.68,0.000194,2]
[350525209,1737944838662,-621.42,0.00019405,2]
[350525210,1737944838686,-224.73219032,0.00019471,2]
[350525211,1737944838709,-500.0,0.00019533,2]
[350525212,1737944838735,-11.68241185,0.00019542,2]
[350525213,1737944848098,-1110.12363896,0.00017901,2]
[350525214,1737944848118,-1230.4732939,0.00018082,2]
[350525215,1737944848140,-1744.66213595,0.00018118,2]
[350525216,1737944848163,-609.73758815,0.00019542,2]
[350525217,1737944848184,-587.0,0.00019631,2]
[350525218,1737944848206,-500.0,0.0001967,2]
[350525219,1737944848230,-621.42,0.00019679,2]
[350525220,1737944848254,-482.50052036,0.00019807,2]
[350525221,1737944848280,-621.42,0.00019816,2]
[350525222,1737944848301,-500.0,0.00019863,9]
[350525223,1737944848323,-151.0,0.00019874,5]
[350525224,1737944848344,-2694.93182445,0.0001989,2]
[350525225,1737944848370,-621.42,0.00019953,2]
[350525226,1737944848390,-160.0,0.0002,2]
[350525227,1737944848410,-151.45456969,0.0002,2]
[350525228,1737944848432,-160.0,0.0002,3]
[350525229,1737944848454,-224.73219032,0.00020043,2]
[350525230,1737944848478,-621.5521505,0.0002009,2]
[350525231,1737944848498,-151.0,0.00020229,5]
[350525232,1737944848522,-500.0,0.000204,2]
[350525233,1737944848543,-500.0,0.00020547,11]
[350525234,1737944848566,-151.0,0.00020583,6]
[350525235,1737944848589,-224.73219032,0.00020614,2]
[350525236,1737944848610,-159.24,0.000209,2]
[350525237,1737944848630,-151.0,0.00020937,6]
[350525238,1737944848650,-9039.95291913,0.00021,2]
[350525239,1737944848671,-224.73219032,0.00021186,2]
[350525240,1737944848692,-500.0,0.00021232,13]
[350525241,1737944848712,-151.0,0.00021291,6]
[350525242,1737944848739,-823.0,0.00021454,2]
[350525243,1737944848764,-182.07,0.00021635,2]
[350525244,1737944848787,-151.0,0.00021646,7]
[350525245,1737944848810,-155.1479102,0.00021699,2]
[350525246,1737944848831,-153.0,0.00021699,2]
[350525247,1737944848853,-153.0,0.00021699,2]
[350525248,1737944848875,-4307.55791499,0.00021721,2]
[350525249,1737944848898,-224.73219032,0.00021757,3]
[350525250,1737944848922,-153.0,0.00021852,2]
[350525251,1737944848944,-153.0,0.00021852,2]
[350525252,1737944848966,-153.0,0.00021852,2]
[350525253,1737944848988,-153.0,0.00021852,2]
[350525254,1737944849010,-253.0,0.00021852,2]
[350525255,1737944849031,-150.0,0.000219,5]
[350525256,1737944849057,-152.3,0.000219,31]
[350525257,1737944849083,-152.3,0.000219,31]
[350525258,1737944849109,-152.3,0.000219,31]
[350525259,1737944849135,-152.3,0.000219,31]
[350525260,1737944849160,-152.3,0.000219,31]
[350525261,1737944849186,-152.3,0.000219,31]
[350525262,1737944849212,-152.3,0.000219,31]
[350525263,1737944849239,-152.3,0.000219,31]
[350525264,1737944849269,-152.3,0.000219,31]
[350525265,1737944849296,-152.3,0.000219,31]
[350525266,1737944849323,-152.3,0.000219,31]
[350525267,1737944849351,-152.3,0.000219,31]
[350525268,1737944849376,-152.3,0.000219,31]
[350525269,1737944849402,-152.3,0.000219,31]
[350525270,1737944849429,-152.3,0.000219,31]
[350525271,1737944849457,-152.3,0.000219,31]
[350525272,1737944849480,-504.46622256,0.00021917,2]
[350525273,1737944849503,-500.0,0.00021917,15]
[350525274,1737944849525,-500.0,0.00021973,2]
[350525275,1737944849547,-514.29589403,0.00021998,2]
[350525276,1737944849570,-515.29609466,0.00021998,2]
[350525277,1737944849590,-257.6105894,0.00021999,2]
[350525278,1737944849611,-500.0,0.00021999,2]
[350525279,1737944849632,-202.28106029,0.00021999,2]
[350525280,1737944849653,-17673.9274885,0.00022,2]
[350525317,1737945032307,-252.39438559,0.000176,2]
[350525318,1737945032317,-300.0,0.000183,2]
[350525319,1737945032327,-489.78958496,0.00018301,2]
[350525320,1737945032336,-500.0,0.00018301,2]
[350525321,1737945032346,-500.0,0.00018301,2]
[350525322,1737945032356,-380.00356389,0.00018301,2]
[350525323,1737945032367,-119.99643611,0.00018301,2]
[350525324,1737945032379,-500.0,0.00018301,2]
[350525325,1737945032388,-500.0,0.00018438,2]
[350525326,1737945032398,-327.56,0.00018438,2]
[350525327,1737945032409,-173.3,0.00018438,2]
[350525328,1737945032419,-500.0,0.00018438,2]
[350525329,1737945032428,-169.8306316,0.00018575,2]
[350525330,1737945032438,-500.0,0.00018575,2]
[350525331,1737945032448,-500.0,0.00018712,2]